fUST/lending_fUST_20250628
["ID","MTS","AMOUNT","RATE_DAILY","PERIOD"]
[368288957,1751093450857,-501.47258747,0.00021573,2]
[368288958,1751093450867,-7491.30838881,0.00021588,2]
[368288959,1751093450876,-231218.17233,0.00021589,2]
[368288960,1751093450885,-216.39733,0.0002159,2]
[368288961,1751093450894,-216.39733,0.0002159,2]
[368288962,1751093450903,-259.443725,0.0002159,2]
[368288963,1751093450913,-259.443725,0.0002159,2]
[368288964,1751093450922,-151.0,0.000216,2]
[368288965,1751093450934,-500.0,0.000216,2]
[368288966,1751093450943,-160.0,0.00021612,4]
[368288967,1751093450952,-500.0,0.00021629,2]
[368288968,1751093450962,-22012.65280196,0.0002163,2]
[368288969,1751093450971,-151.0,0.0002163,2]
[368288970,1751093450980,-151.0,0.0002163,2]
[368288971,1751093450990,-151.0,0.0002163,2]
[368288972,1751093450999,-151.0,0.0002163,2]
[368288973,1751093451008,-653.742723,0.0002163,2]
[368288974,1751093451018,-653.742723,0.0002163,2]
[368288975,1751093451027,-164.961058,0.0002163,2]
[368288976,1751093451036,-164.961058,0.0002163,2]
[368288977,1751093451045,-165.295835,0.00021643,2]
[368288978,1751093451055,-151.0,0.00021643,2]
[368288979,1751093451064,-220.30745689,0.00021643,2]
[368288980,1751093451073,-151.0,0.00021643,2]
[368288981,1751093451082,-362.85850998,0.00021643,2]
[368288982,1751093451092,-564.43,0.00021643,2]
[368288983,1751093451101,-460.0,0.00021643,2]
[368288984,1751093451110,-460.0,0.00021643,2]
[368288985,1751093451121,-434.790623,0.00021643,2]
[368288986,1751093451130,-895.79,0.00021643,2]
[368288987,1751093451139,-460.0,0.00021643,2]
[368288988,1751093451149,-460.0,0.00021643,2]
[368288989,1751093451158,-460.0,0.00021643,2]
[368288990,1751093451168,-151.0,0.00021643,2]
[368288991,1751093451177,-151.0,0.00021643,2]
[368288992,1751093451188,-151.0,0.00021643,2]
[368288993,1751093451200,-460.0,0.00021643,2]
[368288994,1751093451209,-278.273189,0.00021643,2]
[368288995,1751093451218,-278.273189,0.00021643,2]
[368288996,1751093451227,-460.0,0.00021643,2]
[368288997,1751093451237,-1588.55,0.00021643,2]
[368288998,1751093451246,-1201.39,0.00021643,2]
[368288999,1751093451255,-737.5,0.00021643,2]
[368289000,1751093451265,-3189.35,0.00021643,2]
[368289001,1751093451274,-2660.02,0.00021643,2]
[368289002,1751093451283,-313.12360558,0.00021643,2]
[368289003,1751093451293,-846.11,0.00021643,2]
[368289004,1751093451303,-460.0,0.00021643,2]
[368289005,1751093451312,-772.39,0.00021643,2]
[368289006,1751093451321,-460.0,0.00021643,2]
[368289007,1751093451330,-460.0,0.00021643,2]
[368289008,1751093451339,-475.47,0.00021643,2]
[368289009,1751093451348,-633.79,0.00021643,2]
[368289010,1751093451357,-460.0,0.00021643,2]
[368289011,1751093451367,-547.19396051,0.00021643,2]
[368289012,1751093451376,-465.7225414,0.00021643,2]
[368289013,1751093451386,-460.0,0.00021643,2]
[368289014,1751093451395,-460.0,0.00021643,2]
[368289015,1751093451405,-460.0,0.00021643,2]
[368289016,1751093451414,-1070.13,0.00021643,2]
[368289017,1751093451424,-2141.4,0.00021643,2]
[368289018,1751093451434,-551.11,0.00021643,2]
[368289019,1751093451444,-460.0,0.00021643,2]
[368289020,1751093451453,-2982.49,0.00021643,2]
[368289021,1751093451463,-433.132882,0.00021643,2]
[368289022,1751093451473,-2586.42,0.00021643,2]
[368289023,1751093451483,-542.52,0.00021643,2]
[368289024,1751093451492,-460.0,0.00021643,2]
[368289025,1751093451502,-460.0,0.00021643,2]
[368289026,1751093451511,-460.0,0.00021643,2]
[368289027,1751093451521,-3188.49,0.00021643,2]
[368289028,1751093451531,-673.42,0.00021643,2]
[368289029,1751093451540,-1927.22,0.00021643,2]
[368289030,1751093451550,-460.0,0.00021643,2]
[368289031,1751093451559,-531.98,0.00021643,2]
[368289032,1751093451570,-460.0,0.00021643,2]
[368289033,1751093451579,-1125.14,0.00021643,2]
[368289034,1751093451589,-3412.63,0.00021643,2]
[368289035,1751093451600,-474.6,0.00021643,2]
[368289036,1751093451611,-1208.54,0.00021643,2]
[368289037,1751093451620,-460.0,0.00021643,2]
[368289038,1751093451630,-460.0,0.00021643,2]
[368289039,1751093451640,-2026.87,0.00021643,2]
[368289040,1751093451651,-2069.49,0.00021643,2]
[368289041,1751093451662,-460.0,0.00021643,2]
[368289042,1751093451673,-957.54,0.00021643,2]
[368289043,1751093451682,-460.0,0.00021643,2]
[368289044,1751093451692,-759.53,0.00021643,2]
[368289045,1751093451701,-613.33,0.00021643,2]
[368289046,1751093451711,-536.79,0.00021643,2]
[368289047,1751093451720,-750.09,0.00021643,2]
[368289048,1751093451730,-1822.73,0.00021643,2]
[368289049,1751093451739,-473.14,0.00021643,2]
[368289050,1751093451749,-460.0,0.00021643,2]
[368289051,1751093451758,-460.0,0.00021643,2]
[368289052,1751093451768,-503.93,0.00021643,2]
[368289053,1751093451777,-460.0,0.00021643,2]
[368289054,1751093451787,-1100.66,0.00021643,2]
[368289055,1751093451796,-5417.46,0.00021643,2]
[368289056,1751093451806,-562.84,0.00021643,2]
[368289057,1751093451815,-1639.02,0.00021643,2]
[368289058,1751093451824,-460.0,0.00021643,2]
[368289059,1751093451833,-1935.01,0.00021643,2]
[368289060,1751093451843,-821.45,0.00021643,2]
[368289061,1751093451949,-151.0,0.00021645,2]
[368289062,1751093451959,-151.0,0.00021645,2]
[368289063,1751093451969,-151.0,0.00021645,2]
[368289064,1751093451978,-151.99377,0.00021645,2]
[368289065,1751093451988,-229.874466,0.00021645,2]
[368289066,1751093451997,-229.874466,0.00021645,2]
[368289067,1751093452006,-352.0,0.00021648,2]
[368289068,1751093452016,-151.0,0.00021732,2]
[368289069,1751093452025,-212.9,0.00021733,4]
[368289070,1751093452035,-413.815039,0.00021756,4]
[368289071,1751093452044,-500.0,0.0002178,17]
[368289072,1751093452054,-397.3464739,0.00021785,2]
[368289073,1751093452063,-3797.86,0.000218,2]
[368289074,1751093452072,-261.0,0.00021804,2]
[368289075,1751093452082,-261.0,0.00021821,2]
[368289076,1751093452092,-152.568816,0.00021831,2]
[368289077,1751093452101,-587.0,0.00021842,2]
[368289078,1751093452111,-968.174,0.00021847,2]
[368289079,1751093452120,-2161.0,0.00021847,2]
[368289080,1751093452130,-654.0,0.00021847,2]
[368289081,1751093452141,-2780.28,0.000219,2]
[368289082,1751093452150,-200.0,0.0002191,4]
[368289083,1751093452160,-5000.0,0.00021917,2]
[368289084,1751093452169,-153.108831,0.00021917,2]
[368289085,1751093452178,-564.43,0.00021917,2]
[368289086,1751093452187,-460.0,0.00021917,2]
[368289087,1751093452196,-460.0,0.00021917,2]
[368289088,1751093452206,-895.79,0.00021917,2]
[368289089,1751093452215,-152.446602,0.00021917,2]
[368289090,1751093452224,-452.75039927,0.00021917,2]
[368289091,1751093452234,-151.0,0.00021917,2]
[368289092,1751093452243,-460.0,0.00021917,2]
[368289093,1751093452253,-460.0,0.00021917,2]
[368289094,1751093452262,-151.0,0.00021917,2]
[368289095,1751093452271,-151.0,0.00021917,2]
[368289096,1751093452281,-481.237781,0.00021917,2]
[368289097,1751093452290,-460.0,0.00021917,2]
[368289098,1751093452299,-1588.55,0.00021917,2]
[368289099,1751093452309,-481.237781,0.00021917,2]
[368289100,1751093452318,-1201.39,0.00021917,2]
[368289101,1751093452328,-737.5,0.00021917,2]
[368289102,1751093452337,-3189.35,0.00021917,2]
[368289103,1751093452348,-216.39733,0.00021917,2]
[368289104,1751093452357,-2660.02,0.00021917,2]
[368289105,1751093452366,-216.39733,0.00021917,2]
[368289106,1751093452376,-846.11,0.00021917,2]
[368289107,1751093452385,-460.0,0.00021917,2]
[368289108,1751093452395,-151.0,0.00021917,2]
[368289109,1751093452405,-772.39,0.00021917,2]
[368289110,1751093452414,-460.0,0.00021917,2]
[368289111,1751093452423,-460.0,0.00021917,2]
[368289112,1751093452432,-259.443725,0.00021917,2]
[368289113,1751093452442,-475.47,0.00021917,2]
[368289114,1751093452451,-259.443725,0.00021917,2]
[368289115,1751093452460,-633.79,0.00021917,2]
[368289116,1751093452470,-460.0,0.00021917,2]
[368289117,1751093452479,-151.0,0.00021917,2]
[368289118,1751093452489,-460.0,0.00021917,2]
[368289119,1751093452499,-460.0,0.00021917,2]
[368289120,1751093452508,-460.0,0.00021917,2]
[368289121,1751093452518,-1070.13,0.00021917,2]
[368289122,1751093452528,-2141.4,0.00021917,2]
[368289123,1751093452538,-551.11,0.00021917,2]
[368289124,1751093452547,-460.0,0.00021917,2]
[368289125,1751093452557,-2982.49,0.00021917,2]
[368289126,1751093452567,-2586.42,0.00021917,2]
[368289127,1751093452576,-151.0,0.00021917,2]
[368289128,1751093452586,-542.52,0.00021917,2]
[368289129,1751093452597,-460.0,0.00021917,2]
[368289130,1751093452607,-460.0,0.00021917,2]
[368289131,1751093452616,-151.0,0.00021917,2]
[368289132,1751093452625,-460.0,0.00021917,2]
[368289133,1751093452635,-252.339413,0.00021917,2]
[368289134,1751093452644,-151.0,0.00021917,2]
[368289135,1751093452654,-3188.49,0.00021917,2]
[368289136,1751093452664,-673.42,0.00021917,2]
[368289137,1751093452673,-1927.22,0.00021917,2]
[368289138,1751093452683,-252.339413,0.00021917,2]
[368289139,1751093452692,-151.0,0.00021917,2]
[368289140,1751093452701,-460.0,0.00021917,2]
[368289141,1751093452710,-531.98,0.00021917,2]
[368289142,1751093452720,-460.0,0.00021917,2]
[368289143,1751093452729,-1125.14,0.00021917,2]
[368289144,1751093452738,-3412.63,0.00021917,2]
[368289145,1751093452747,-474.6,0.00021917,2]
[368289146,1751093452756,-1208.54,0.00021917,2]
[368289147,1751093452766,-460.0,0.00021917,2]
[368289148,1751093452775,-460.0,0.00021917,2]
[368289149,1751093452784,-2026.87,0.00021917,2]
[368289150,1751093452793,-2069.49,0.00021917,2]
[368289151,1751093452802,-460.0,0.00021917,2]
[368289152,1751093452812,-957.54,0.00021917,2]
[368289153,1751093452821,-460.0,0.00021917,2]
[368289154,1751093452830,-759.53,0.00021917,2]
[368289155,1751093452840,-613.33,0.00021917,2]
[368289156,1751093452850,-536.79,0.00021917,2]
[368289157,1751093452859,-750.09,0.00021917,2]
[368289158,1751093452869,-1822.73,0.00021917,2]
[368289159,1751093452878,-473.14,0.00021917,2]
[368289160,1751093452888,-460.0,0.00021917,2]
[368289161,1751093452897,-460.0,0.00021917,2]
[368289162,1751093452907,-503.93,0.00021917,2]
[368289163,1751093452918,-460.0,0.00021917,2]
[368289164,1751093452928,-1100.66,0.00021917,2]
[368289165,1751093452939,-5417.46,0.00021917,2]
[368289166,1751093452949,-562.84,0.00021917,2]
[368289167,1751093452960,-1639.02,0.00021917,2]
[368289168,1751093452969,-460.0,0.00021917,2]
[368289169,1751093452979,-151.0,0.00021917,2]
[368289170,1751093452989,-1935.01,0.00021917,2]
[368289171,1751093452998,-821.45,0.00021917,2]
[368289172,1751093453007,-151.0,0.00021917,2]
[368289173,1751093453016,-151.0,0.00021918,2]
[368289174,1751093453026,-151.0,0.00021918,2]
[368289175,1751093453036,-237.13056107,0.00021918,2]
[368289176,1751093453046,-261.0,0.00021929,2]
[368289177,1751093453056,-2500.0,0.00021956,2]
[368289178,1751093453065,-212.9,0.00021971,4]
[368289179,1751093453075,-500.0,0.00021983,8]
[368289180,1751093453084,-261.0,0.00021986,2]
[368289181,1751093453093,-500.0,0.00022,8]
[368289182,1751093453103,-7749.6,0.00022,7]
[368289183,1751093453112,-50000.0,0.00022,2]
[368289184,1751093453121,-151.0,0.00022,7]
[368289185,1751093453130,-151.0,0.00022,7]
[368289186,1751093453139,-151.0,0.00022,7]
[368289187,1751093453149,-86811.23036679,0.00022,2]
[368289188,1751093453303,-7902.18597065,0.00022,2]
[368289189,1751093453314,-501.56570613,0.00022,2]
[368289190,1751093453355,-460.0,0.00019178,2]
[368289191,1751093453364,-255.6763441,0.00022,2]
[368289192,1751093453376,-304.2614001,0.00022,2]
[368289193,1751093453388,-6727.60999995,0.00022,2]
[368289194,1751093453399,-770.67,0.00022,2]
[368289195,1751093453415,-4324.70442203,0.00022,2]
[368289196,1751093453549,-460.0,0.00019178,2]
[368289197,1751093453559,-460.0,0.00019178,2]
[368289198,1751093453568,-510.36,0.00019178,2]
[368289199,1751093453578,-460.0,0.00019452,2]
[368289200,1751093453587,-151.0,0.00020624,2]
[368289201,1751093453600,-151.0,0.00021,2]
[368289202,1751093453610,-151.0,0.00021408,2]
[368289203,1751093453620,-159.1939926,0.00021487,2]
[368289204,1751093453629,-151.0,0.00021917,2]
[368289205,1751093453640,-993.62134288,0.00022,2]
[368289206,1751093453653,-994.85122693,0.00022,2]
[368289207,1751093453720,-10685.95473512,0.000199,2]
[368289208,1751093453729,-10685.95473505,0.00020141,2]
[368289209,1751093453739,-4862.73052982,0.00020383,3]
[368289210,1751093453750,-272.19120742,0.00020383,3]
[368289211,1751093453765,-697.09907668,0.00020383,3]
[368289215,1751094334496,347.664506,0.00013699,2]
[368289218,1751094439109,-694.56201937,0.00018749,2]
[368289250,1751094632033,-346.23248409,0.00018731,2]
[368289252,1751094632046,-165.0,0.00018749,2]
[368289254,1751094632060,-198.35940292,0.0001875,2]
[368289256,1751094632075,-1161.37908044,0.0001875,2]
[368289260,1751094632090,-1609.87796812,0.0001875,2]
[368289262,1751094632105,-1567.00790437,0.0001875,2]
[368289265,1751094632120,-20363.37564415,0.0001875,2]
[368289267,1751094632131,-623.8446948,0.0001888,2]
[368289269,1751094632143,-706.22185809,0.000189,2]
[368289272,1751094632154,-514.21082797,0.00019078,2]
[368289274,1751094632164,-503.79,0.00019168,3]
[368289276,1751094632175,-380.9,0.00019168,3]
[368289278,1751094632187,-190.45,0.00019168,3]
[368289281,1751094632199,-571.37,0.00019168,3]
[368289283,1751094632210,-500.0,0.00019177,2]
[368289285,1751094632221,-500.0,0.00019177,2]
[368289287,1751094632232,-500.0,0.00019177,2]
[368289289,1751094632242,-355.01472192,0.00019177,2]
[368289291,1751094632252,-404.28313158,0.00019178,2]
[368289294,1751094632264,-460.0,0.00019178,2]
[368289296,1751094632274,-460.0,0.00019178,2]
[368289298,1751094632287,-462.790081,0.00019178,2]
[368289301,1751094632299,-460.0,0.00019178,2]
[368289303,1751094632312,-466.71868676,0.00019178,2]
[368289305,1751094632324,-460.0,0.00019178,2]
[368289307,1751094632335,-246.333005,0.00019178,2]
[368289310,1751094632347,-549.26166299,0.00019178,2]
[368289312,1751094632359,-201.28796667,0.00019178,2]
[368289314,1751094632373,-468.35989221,0.00019178,2]
[368289317,1751094632385,-460.0,0.00019178,2]
[368289319,1751094632397,-460.0,0.00019178,2]
[368289321,1751094632407,-460.0,0.00019178,2]
[368289323,1751094632417,-441.69,0.00019178,2]
[368289325,1751094632428,-315.33797901,0.00019178,2]
[368289327,1751094632442,-460.0,0.00019178,2]
[368289328,1751094632453,-362.85850998,0.00019178,2]
[368289329,1751094632465,-460.0,0.00019178,2]
[368289330,1751094632479,-460.0,0.00019178,2]
[368289331,1751094632491,-460.0,0.00019178,2]
[368289332,1751094632502,-225.59298984,0.00019178,2]
[368289333,1751094632512,-460.0,0.00019178,2]
[368289334,1751094632523,-460.0,0.00019178,2]
[368289335,1751094632535,-460.0,0.00019178,2]
[368289336,1751094632546,-358.78893328,0.00019178,2]
[368289337,1751094632558,-460.0,0.00019178,2]
[368289338,1751094632570,-460.0,0.00019178,2]
[368289339,1751094632581,-461.45673651,0.00019178,2]
[368289340,1751094632592,-460.0,0.00019178,2]
[368289341,1751094632604,-460.0,0.00019178,2]
[368289342,1751094632615,-460.0,0.00019178,2]
[368289343,1751094632626,-460.0,0.00019178,2]
[368289344,1751094632637,-460.0,0.00019178,2]
[368289345,1751094632647,-462.20171401,0.00019178,2]
[368289346,1751094632658,-460.0,0.00019178,2]
[368289347,1751094632671,-460.0,0.00019178,2]
[368289348,1751094632682,-460.0,0.00019178,2]
[368289349,1751094632692,-460.0,0.00019178,2]
[368289350,1751094632703,-460.0,0.00019178,2]
[368289351,1751094632714,-309.72760043,0.00019178,2]
[368289352,1751094632724,-460.0,0.00019178,2]
[368289353,1751094632734,-350.0,0.00019178,2]
[368289354,1751094632744,-460.0,0.00019178,2]
[368289355,1751094632754,-460.0,0.00019178,2]
[368289356,1751094632764,-460.0,0.00019178,2]
[368289357,1751094632775,-463.45030882,0.00019178,2]
[368289358,1751094632785,-460.0,0.00019178,2]
[368289359,1751094632796,-460.0,0.00019178,2]
[368289360,1751094632807,-460.0,0.00019178,2]
[368289361,1751094632817,-348.98118321,0.00019178,2]
[368289362,1751094632828,-460.0,0.00019178,2]
[368289363,1751094632839,-460.0,0.00019178,2]
[368289364,1751094632849,-460.0,0.00019178,2]
[368289365,1751094632859,-467.85264763,0.00019178,2]
[368289366,1751094632870,-323.75783934,0.00019178,2]
[368289367,1751094632880,-460.0,0.00019178,2]
[368289368,1751094632891,-387.40038183,0.00019178,2]
[368289369,1751094632902,-460.0,0.00019178,2]
[368289370,1751094632912,-290.31651181,0.00019178,2]
[368289371,1751094632923,-460.0,0.00019178,2]
[368289372,1751094632934,-439.38909669,0.00019178,2]
[368289373,1751094632945,-460.0,0.00019178,2]
[368289374,1751094632956,-460.0,0.00019178,2]
[368289375,1751094632966,-460.0,0.00019178,2]
[368289376,1751094632977,-460.0,0.00019178,2]
[368289377,1751094632987,-460.0,0.00019178,2]
[368289378,1751094632998,-460.0,0.00019178,2]
[368289379,1751094633009,-460.0,0.00019178,2]
[368289380,1751094633020,-460.0,0.00019178,2]
[368289381,1751094633032,-460.0,0.00019178,2]
[368289382,1751094633043,-460.0,0.00019178,2]
[368289383,1751094633055,-460.0,0.00019178,2]
[368289384,1751094633067,-460.0,0.00019178,2]
[368289385,1751094633079,-460.0,0.00019178,2]
[368289386,1751094633091,-279.32403262,0.00019178,2]
[368289387,1751094633102,-460.0,0.00019178,2]
[368289388,1751094633114,-460.0,0.00019178,2]
[368289389,1751094633125,-500.0,0.00019178,2]
[368289390,1751094633136,-460.0,0.00019178,2]
[368289391,1751094633147,-460.0,0.00019178,2]
[368289392,1751094633158,-241.51884292,0.00019178,2]
[368289393,1751094633170,-460.0,0.00019178,2]
[368289394,1751094633181,-462.65921325,0.00019178,2]
[368289395,1751094633192,-501.7958171,0.00019178,2]
[368289396,1751094633203,-561.43583102,0.00019178,2]
[368289397,1751094633215,-195.24071455,0.00019178,2]
[368289398,1751094633226,-460.0,0.00019178,2]
[368289399,1751094633238,-460.0,0.00019178,2]
[368289400,1751094633249,-460.0,0.00019178,2]
[368289401,1751094633260,-466.6936865,0.00019178,2]
[368289402,1751094633271,-460.0,0.00019178,2]
[368289403,1751094633283,-460.0,0.00019178,2]
[368289404,1751094633294,-460.0,0.00019178,2]
[368289405,1751094633306,-823.67,0.00019178,2]
[368289406,1751094633317,-460.0,0.00019178,2]
[368289407,1751094633328,-460.0,0.00019178,2]
[368289408,1751094633339,-460.0,0.00019178,2]
[368289409,1751094633350,-460.0,0.00019178,2]
[368289410,1751094633360,-231.92973666,0.00019178,2]
[368289411,1751094633371,-460.0,0.00019178,2]
[368289412,1751094633380,-460.0,0.00019178,2]
[368289413,1751094633390,-460.0,0.00019178,2]
[368289414,1751094633399,-460.0,0.00019178,2]
[368289415,1751094633409,-460.0,0.00019178,2]
[368289416,1751094633418,-484.1776623,0.00019178,2]
[368289417,1751094633428,-460.0,0.00019178,2]
[368289418,1751094633441,-460.0,0.00019178,2]
[368289419,1751094633450,-463.82966482,0.00019178,2]
[368289420,1751094633656,-503.29351089,0.00019178,2]
[368289421,1751094633671,-460.0,0.00019178,2]
[368289422,1751094633681,-460.0,0.00019178,2]
[368289423,1751094633691,-460.0,0.00019178,2]
[368289424,1751094633700,-460.0,0.00019178,2]
[368289425,1751094633710,-460.0,0.00019178,2]
[368289426,1751094633719,-460.0,0.00019178,2]
[368289427,1751094633729,-460.0,0.00019178,2]
[368289428,1751094633739,-433.81553954,0.00019178,2]
[368289429,1751094633748,-460.0,0.00019178,2]
[368289430,1751094633758,-460.0,0.00019178,2]
[368289431,1751094633768,-460.0,0.00019178,2]
[368289432,1751094633778,-460.0,0.00019178,2]
[368289433,1751094633787,-460.0,0.00019178,2]
[368289434,1751094633797,-500.0,0.00019178,2]
[368289435,1751094633807,-460.0,0.00019178,2]
[368289436,1751094633816,-500.0,0.00019178,2]
[368289437,1751094633826,-596.16203107,0.00019178,2]
[368289438,1751094633836,-460.0,0.00019178,2]
[368289439,1751094633846,-460.0,0.00019178,2]
[368289440,1751094633856,-500.0,0.00019178,2]
[368289441,1751094633865,-460.0,0.00019178,2]
[368289442,1751094633875,-460.0,0.00019178,2]
[368289443,1751094633884,-460.0,0.00019178,2]
[368289444,1751094633894,-460.0,0.00019178,2]
[368289445,1751094633904,-460.0,0.00019178,2]
[368289446,1751094633913,-239.03280257,0.00019178,2]
[368289447,1751094633923,-460.0,0.00019178,2]
[368289448,1751094633932,-460.0,0.00019178,2]
[368289449,1751094633941,-239.59986534,0.00019178,2]
[368289450,1751094633951,-433.64609318,0.00019178,2]
[368289451,1751094633967,-26.35390682,0.00019178,2]
[368289452,1751094633977,-460.0,0.00019178,2]
[368289453,1751094633987,-460.0,0.00019178,2]
[368289454,1751094633996,-274.94585573,0.00019178,2]
[368289481,1751094637943,-185.05414427,0.00019178,2]
[368289483,1751094637953,-463.64439017,0.00019178,2]
[368289485,1751094637962,-460.0,0.00019178,2]
[368289487,1751094637972,-460.0,0.00019178,2]
[368289489,1751094637982,-460.0,0.00019178,2]
[368289491,1751094637992,-110.63841127,0.00019178,2]
[368289494,1751094638004,-349.36158873,0.00019178,2]
[368289496,1751094638013,-65.68386427,0.00019178,2]
[368289502,1751094638063,-394.31613573,0.00019178,2]
[368289503,1751094638072,-460.0,0.00019178,2]
[368289505,1751094638082,-460.0,0.00019178,2]
[368289507,1751094638091,-5301.63,0.00019178,2]
[368289509,1751094638100,-460.0,0.00019178,2]
[368289510,1751094638110,-1038.0,0.00019178,2]
[368289512,1751094638119,-460.0,0.00019178,2]
[368289514,1751094638129,-516.6095188,0.00019178,2]
[368289515,1751094638138,-460.0,0.00019178,2]
[368289516,1751094638150,-460.0,0.00019178,2]
[368289517,1751094638159,-460.0,0.00019178,2]
[368289518,1751094638169,-460.0,0.00019178,2]
[368289519,1751094638178,-460.0,0.00019178,2]
[368289521,1751094638189,-467.23236946,0.00019178,2]
[368289523,1751094638198,-460.0,0.00019178,2]
[368289524,1751094638208,-460.0,0.00019178,2]
[368289525,1751094638218,-424.98801689,0.00019178,2]
[368289526,1751094638227,-460.0,0.00019178,2]
[368289527,1751094638237,-460.0,0.00019178,2]
[368289529,1751094638246,-460.0,0.00019178,2]
[368289530,1751094638256,-460.0,0.00019178,2]
[368289531,1751094638266,-460.0,0.00019178,2]
[368289532,1751094638275,-460.0,0.00019178,2]
[368289533,1751094638285,-480.00000012,0.00019178,2]
[368289534,1751094638294,-1699.45,0.00019178,2]
[368289535,1751094638304,-460.0,0.00019178,2]
[368289536,1751094638314,-1637.92,0.00019178,2]
[368289537,1751094638324,-460.0,0.00019178,2]
[368289538,1751094638334,-500.0,0.00019178,2]
[368289539,1751094638343,-862.06,0.00019178,2]
[368289540,1751094638353,-3162.09,0.00019178,2]
[368289541,1751094638363,-460.0,0.00019178,2]
[368289542,1751094638372,-460.0,0.00019178,2]
[368289543,1751094638382,-460.0,0.00019178,2]
[368289544,1751094638391,-460.0,0.00019178,2]
[368289545,1751094638401,-460.0,0.00019178,2]
[368289546,1751094638410,-531.66,0.00019178,2]
[368289547,1751094638419,-460.0,0.00019178,2]
[368289548,1751094638429,-390.0,0.00019178,2]
[368289549,1751094638443,-460.0,0.00019178,2]
[368289550,1751094638453,-460.0,0.00019178,2]
[368289551,1751094638462,-460.0,0.00019178,2]
[368289552,1751094638471,-130.35178027,0.00019178,2]
[368289553,1751094638484,-329.64821973,0.00019178,2]
[368289554,1751094638494,-460.0,0.00019178,2]
[368289555,1751094638503,-449.09643634,0.00019178,2]
[368289556,1751094638515,-10.90356366,0.00019178,2]
[368289557,1751094638525,-460.0,0.00019178,2]
[368289558,1751094638534,-460.0,0.00019178,2]
[368289559,1751094638544,-460.0,0.00019178,2]
[368289560,1751094638553,-153.23896903,0.00019178,2]
[368289561,1751094638563,-460.0,0.00019178,2]
[368289562,1751094638573,-460.0,0.00019178,2]
[368289563,1751094638582,-460.0,0.00019178,2]
[368289564,1751094638591,-778.72,0.00019178,2]
[368289565,1751094638601,-460.0,0.00019178,2]
[368289566,1751094638611,-716.88248316,0.00019178,2]
[368289567,1751094638622,-916.64751684,0.00019178,2]
[368289568,1751094638632,-448.53033588,0.00019178,2]
[368289569,1751094638641,-460.0,0.00019178,2]
[368289570,1751094638651,-460.0,0.00019178,2]
[368289571,1751094638660,-460.0,0.00019178,2]
[368289572,1751094638670,-2727.76,0.00019178,2]
[368289573,1751094638680,-833.98,0.00019178,2]
[368289574,1751094638690,-522.54799581,0.00019178,2]
[368289575,1751094638699,-491.22669747,0.00019178,2]
[368289576,1751094638711,-143.89330253,0.00019178,2]
[368289577,1751094638721,-460.0,0.00019178,2]
[368289578,1751094638731,-672.5916975,0.00019178,2]
[368289579,1751094638743,-150.1683025,0.00019178,2]
[368289580,1751094638753,-137.53903671,0.00019178,2]
[368289583,1751094638764,-322.46096329,0.00019178,2]
[368289585,1751094638775,-460.0,0.00019178,2]